bitfinex/quotes_BTCUSD_20250705
["timestamp","ask_amount","ask_price","bid_price","bid_amount"]
[1751716814889,0.68634624,108290.0,108280.0,0.26194353]
[1751716817925,0.8710355,108290.0,108280.0,0.25270882]
[1751716818998,0.92587123,108290.0,108280.0,0.25270882]
[1751716819455,1.20501035,108290.0,108280.0,0.25270882]
[1751716819670,1.20501035,108290.0,108280.0,0.24347402]
[1751716819892,1.13170664,108290.0,108280.0,0.24347402]
[1751716824098,0.85256752,108290.0,108280.0,0.24347402]
[1751716824297,1.13170664,108290.0,108280.0,0.24347402]
[1751716826574,1.13170664,108290.0,108280.0,0.22500417]
[1751716826779,1.21390928,108290.0,108280.0,0.22500417]
[1751716826960,1.22930928,108290.0,108280.0,0.21500417]
[1751716827168,1.22930928,108290.0,108280.0,0.22423931]
[1751716828208,0.95017016,108290.0,108280.0,0.22424089]
[1751716828454,1.13787235,108290.0,108280.0,0.23347594]
[1751716828831,1.13787235,108290.0,108280.0,0.21500575]
[1751716829062,1.14363798,108290.0,108280.0,0.20577052]
[1751716829261,0.86449886,108290.0,108280.0,0.21500583]
[1751716829482,1.23507491,108290.0,108280.0,0.21500583]
[1751716829610,1.23507491,108290.0,108280.0,0.22424106]
[1751716829844,1.23511491,108290.0,108280.0,0.22424106]
[1751716830043,1.23511491,108290.0,108280.0,0.03030006]
[1751716830249,1.23511491,108290.0,108280.0,0.02106475]
[1751716830448,1.23511491,108290.0,108280.0,0.03030006]
[1751716830676,1.23511491,108290.0,108280.0,0.02730006]
[1751716830960,1.23511491,108290.0,108280.0,0.1966724]
[1751716831165,1.22588045,108290.0,108280.0,0.00273078]
[1751716831562,1.1889233,108290.0,108280.0,0.00273078]
[1751716831972,1.1889233,108290.0,108280.0,0.002]
[1751716832195,0.02553514,108280.0,108270.0,0.25068482]
[1751716832418,0.68394103,108280.0,108270.0,0.25073188]
[1751716832992,0.69317608,108280.0,108270.0,0.25073188]
[1751716833414,0.69317608,108280.0,108270.0,0.25173188]
[1751716834007,0.70241096,108280.0,108270.0,0.25173188]
[1751716834248,0.70241096,108280.0,108270.0,0.2444964]
[1751716834452,0.88711762,108280.0,108270.0,0.23526083]
[1751716834658,0.88711762,108280.0,108270.0,0.24449691]
[1751716834868,0.87788257,108280.0,108270.0,0.24449691]
[1751716835793,0.88713013,108280.0,108270.0,0.24449691]
[1751716836641,0.88713013,108280.0,108270.0,0.2537329]
[1751716837634,1.16626925,108280.0,108270.0,0.23526083]
[1751716838063,1.16626925,108280.0,108270.0,0.24449691]
[1751716838260,0.88713013,108280.0,108270.0,0.24449691]
[1751716839051,0.88713013,108280.0,108270.0,0.2537329]
[1751716839866,0.88713013,108280.0,108270.0,0.26296881]
[1751716845598,0.87789499,108280.0,108270.0,0.23526091]
[1751716846449,1.15703411,108280.0,108270.0,0.05053771]
[1751716846662,1.55150908,108280.0,108270.0,0.04130155]
[1751716846871,1.60687294,108280.0,108270.0,0.04130155]
[1751716847075,1.63463994,108280.0,108270.0,0.04130155]
[1751716848231,1.60687294,108280.0,108270.0,0.04130155]
[1751716848686,1.56990396,108280.0,108270.0,0.04130155]
[1751716848913,1.59767196,108280.0,108270.0,0.04130155]
[1751716850383,1.03939372,108280.0,108270.0,0.04130155]
[1751716850625,1.59767196,108280.0,108270.0,0.04130155]
[1751716852210,1.56990396,108280.0,108270.0,0.04130155]
[1751716852628,1.60632735,108280.0,108270.0,0.04130155]
[1751716852842,1.7602289,108280.0,108270.0,0.04130155]
[1751716854273,1.7602289,108280.0,108270.0,0.04030155]
[1751716854480,1.7602289,108280.0,108270.0,0.03830155]
[1751716854691,1.7612289,108280.0,108270.0,0.03830155]
[1751716855713,1.17020265,108280.0,108270.0,0.03830155]
[1751716855937,1.72848089,108280.0,108270.0,0.03830155]
[1751716856335,1.65457934,108280.0,108270.0,0.03830155]
[1751716856567,2.09998887,108280.0,108270.0,0.03830155]
[1751716856775,1.82084975,108280.0,108270.0,0.03830155]
[1751716856987,1.78810174,108280.0,108270.0,0.03830155]
[1751716862478,1.7568315,108280.0,108270.0,0.03830155]
[1751716872310,0.22515936,108270.0,108260.0,0.0012363]
[1751716872461,0.94907603,108270.0,108260.0,0.00137739]
[1751716873903,0.94907603,108270.0,108260.0,0.00237739]
[1751716874551,0.66993691,108270.0,108260.0,0.00237739]
[1751716874762,0.94907603,108270.0,108260.0,0.00237739]
[1751716876057,0.94769067,108270.0,108260.0,0.00237739]
[1751716877484,0.94769067,108270.0,108260.0,0.00437739]
[1751716878358,0.89238821,108270.0,108260.0,0.00437739]
[1751716878579,1.24542888,108270.0,108260.0,0.00437739]
[1751716878983,1.27319988,108270.0,108260.0,0.00437739]
[1751716880044,0.62501761,108270.0,108260.0,0.00437739]
[1751716880253,0.90415673,108270.0,108260.0,0.00437739]
[1751716885130,1.18329585,108270.0,108260.0,0.00437739]
[1751716886993,0.62501761,108270.0,108260.0,0.00437739]
[1751716887197,0.53397728,108260.0,108250.0,0.00326]
[1751716887410,1.57143654,108260.0,108250.0,0.00326]
[1751716888770,1.51602351,108260.0,108250.0,0.00626]
[1751716889006,1.58992506,108260.0,108250.0,0.00626]
[1751716889228,1.58992506,108260.0,108250.0,0.00326]
[1751716889435,1.58992506,108260.0,108250.0,0.00526]
[1751716889650,1.58992506,108260.0,108250.0,0.00726]
[1751716889901,1.58992506,108260.0,108250.0,0.00526]
[1751716893429,1.59192506,108260.0,108250.0,0.00526]
[1751716893640,1.61969906,108260.0,108250.0,0.00526]
[1751716894077,1.61969906,108260.0,108250.0,0.00326]
[1751716894296,0.1939952,108250.0,108240.0,0.002]
[1751716894504,0.78723629,108250.0,108240.0,0.002]
[1751716895312,0.84258524,108250.0,108240.0,0.002]
[1751716896804,0.56344612,108250.0,108240.0,0.002]
[1751716897237,0.84258524,108250.0,108240.0,0.002]
[1751716900238,0.87468524,108250.0,108240.0,0.003]
[1751716902475,0.87668524,108250.0,108240.0,0.003]
[1751716902686,0.87668524,108250.0,108240.0,0.002]
[1751716902912,1.15582436,108250.0,108240.0,0.002]
[1751716903129,1.10047541,108250.0,108240.0,0.002]
[1751716903345,0.56997417,108250.0,108240.0,0.002]
[1751716903557,1.12825241,108250.0,108240.0,0.002]
[1751716907712,1.20215396,108250.0,108240.0,0.002]
[1751716908925,1.54215396,108250.0,108240.0,0.002]
[1751716909131,0.78249136,108240.0,108230.0,0.01326]
[1751716909344,1.22960172,108240.0,108230.0,0.01326]
[1751716910997,1.22960172,108240.0,108230.0,0.01426]
[1751716911627,1.84874084,108240.0,108230.0,0.01426]
[1751716911859,1.86734002,108240.0,108230.0,0.01426]
[1751716912072,1.89512002,108240.0,108230.0,0.01426]
[1751716912279,0.78480929,108230.0,108220.0,0.002]
[1751716912488,1.23197399,108230.0,108220.0,0.002]
[1751716913541,1.23397399,108230.0,108220.0,0.002]
[1751716915060,0.67569575,108230.0,108220.0,0.002]
[1751716915273,0.95483487,108230.0,108220.0,0.002]
[1751716916132,1.23397399,108230.0,108220.0,0.002]
[1751716916595,0.95483487,108230.0,108220.0,0.002]
[1751716917037,1.24301691,108230.0,108220.0,0.002]
[1751716917258,1.73141691,108230.0,108220.0,0.002]
[1751716917914,1.17313867,108230.0,108220.0,0.002]
[1751716918189,1.45227779,108230.0,108220.0,0.002]
[1751716918616,1.73141691,108230.0,108220.0,0.002]
[1751716918831,1.77665691,108230.0,108220.0,0.002]
[1751716920594,1.85665691,108230.0,108220.0,0.002]
[1751716921142,0.94236174,108230.0,108220.0,0.002]
[1751716921385,1.44561449,108230.0,108220.0,0.0348]
[1751716922023,1.16647537,108230.0,108220.0,0.0348]
[1751716922231,1.44565449,108230.0,108220.0,0.0348]
[1751716923085,1.45487837,108230.0,108220.0,0.0348]
[1751716923277,1.3591953,108230.0,108220.0,0.0348]
[1751716923524,1.53709142,108230.0,108220.0,0.0348]
[1751716923741,1.2579923,108230.0,108220.0,0.0348]
[1751716923952,1.16655537,108230.0,108220.0,0.0348]
[1751716924173,1.44569449,108230.0,108220.0,0.0348]
[1751716924393,1.44569449,108230.0,108220.0,0.21960872]
[1751716924645,1.44569449,108230.0,108220.0,0.22884915]
[1751716924853,1.53713142,108230.0,108220.0,0.22884915]
[1751716925075,1.5278921,108230.0,108220.0,0.0348]
[1751716925290,1.24875298,108230.0,108220.0,0.0348]
[1751716925503,1.5278921,108230.0,108220.0,0.002]
[1751716928243,1.24875298,108230.0,108220.0,0.002]
[1751716928403,1.49105487,108230.0,108220.0,0.002]
[1751716928606,1.21191575,108230.0,108220.0,0.002]
[1751716928804,1.49105487,108230.0,108220.0,0.002]
[1751716929381,1.50605487,108230.0,108220.0,0.002]
[1751716930205,1.80019399,108230.0,108220.0,0.002]
[1751716930614,1.74491728,108230.0,108220.0,0.002]
[1751716931099,2.09945813,108230.0,108220.0,0.002]
[1751716931309,2.09945813,108230.0,108210.0,0.00391062]
[1751716931310,0.19404898,108220.0,108210.0,0.00391062]
[1751716931516,1.17827521,108220.0,108210.0,0.00391062]
[1751716931938,1.01815241,108220.0,108210.0,0.00391062]
[1751716932743,1.01815241,108220.0,108210.0,0.00491062]
[1751716933584,1.35815241,108220.0,108210.0,0.00491062]
[1751716934204,1.35815241,108220.0,108210.0,0.00391062]
[1751716934422,1.36015241,108220.0,108210.0,0.00391062]
[1751716934879,1.37469326,108220.0,108210.0,0.00391062]
[1751716935096,1.44859481,108220.0,108210.0,0.00391062]
[1751716935309,1.47838181,108220.0,108210.0,0.00391062]
[1751716935897,1.52498181,108220.0,108210.0,0.00391062]
[1751716936142,1.52492637,108220.0,108210.0,0.00391062]
[1751716938283,0.19406691,108210.0,108200.0,0.0024]
[1751716938581,0.64399194,108210.0,108200.0,0.00248712]
[1751716938796,1.04214738,108210.0,108200.0,0.00248712]
[1751716939007,1.07344738,108210.0,108200.0,0.00248712]
[1751716939431,1.07544738,108210.0,108200.0,0.00248712]
[1751716940922,1.56384738,108210.0,108200.0,0.00248712]
[1751716941884,1.16569194,108210.0,108200.0,0.00248712]
[1751716942094,1.53254738,108210.0,108200.0,0.00248712]
[1751716942316,1.13439194,108210.0,108200.0,0.00248712]
[1751716942636,1.53254738,108210.0,108200.0,0.00248712]
[1751716946420,1.54774738,108210.0,108200.0,0.00248712]
[1751716946614,1.56304738,108210.0,108200.0,0.00248712]
[1751716948196,1.53254738,108210.0,108200.0,0.00248712]
[1751716948607,1.54774738,108210.0,108200.0,0.00248712]
[1751716948813,1.56304738,108210.0,108200.0,0.00248712]
[1751716950939,1.56304738,108210.0,108190.0,0.01963302]
[1751716950940,0.93224046,108200.0,108190.0,0.01963302]
[1751716951114,1.31380155,108200.0,108190.0,0.20496422]
[1751716951311,1.31380155,108200.0,108190.0,0.22106422]
[1751716951523,1.31380155,108200.0,108190.0,0.23616422]
[1751716952046,1.19561294,108200.0,108190.0,0.23716422]
[1751716952456,1.19561294,108200.0,108190.0,0.23816422]
[1751716952594,1.20485854,108200.0,108190.0,0.23816422]
[1751716953235,1.20485854,108200.0,108190.0,0.03381836]
[1751716953438,1.20585854,108200.0,108190.0,0.04306135]
[1751716953691,1.20585854,108200.0,108190.0,0.01086135]
[1751716953899,1.20685854,108200.0,108190.0,0.01086135]
[1751716954722,1.20685854,108200.0,108190.0,0.20496422]
[1751716955146,1.20685854,108200.0,108190.0,0.01086135]
[1751716955347,1.1792332,108200.0,108190.0,0.01086135]
[1751716955549,1.1792332,108200.0,108190.0,0.19572131]
[1751716958276,1.23451024,108200.0,108190.0,0.20496422]
[1751716958535,1.23451024,108200.0,108190.0,0.21420704]
[1751716959171,1.22037933,108200.0,108190.0,0.20496422]
[1751716959582,1.22037933,108200.0,108190.0,0.19572131]
[1751716959812,1.22037933,108200.0,108190.0,0.20496422]
[1751716960223,1.1982052,108200.0,108190.0,0.20496422]
[1751716960428,0.94038358,108200.0,108190.0,0.20496422]
[1751716960662,1.22035041,108200.0,108190.0,0.20496422]
[1751716961005,1.22035041,108200.0,108190.0,0.21420704]
[1751716961212,1.31178734,108200.0,108190.0,0.21420704]
[1751716961420,1.27495356,108200.0,108190.0,0.21420704]
[1751716961623,1.27495356,108200.0,108190.0,0.20496422]
[1751716963291,1.27495356,108200.0,108190.0,0.21420704]
[1751716964547,1.27495356,108200.0,108190.0,0.00161836]
[1751716965201,1.55492039,108200.0,108190.0,0.00161836]
[1751716966352,1.58642039,108200.0,108190.0,0.00161836]
[1751716968229,1.49498346,108200.0,108190.0,0.00161836]
[1751716968667,1.21501663,108200.0,108190.0,0.00161836]
[1751716969949,1.21501663,108200.0,108190.0,0.00171836]
[1751716970181,1.21506663,108200.0,108190.0,0.00171836]
[1751716971016,1.19996663,108200.0,108190.0,0.00171836]
[1751716971602,0.9199998,108200.0,108190.0,0.00171836]
[1751716971807,1.19996663,108200.0,108190.0,0.00171836]
[1751716972419,1.29140356,108200.0,108190.0,0.00171836]
[1751716973207,1.19996663,108200.0,108190.0,0.00171836]
[1751716973585,1.19996663,108200.0,108190.0,0.01096135]
[1751716974738,1.18356663,108200.0,108190.0,0.20506405]
[1751716974945,1.21135463,108200.0,108190.0,0.20506405]
[1751716975378,1.21137089,108200.0,108190.0,0.20506405]
[1751716975586,0.74204406,108200.0,108190.0,0.20506405]
[1751716975787,0.92149594,108200.0,108190.0,0.5349161]
[1751716975990,0.91225431,108200.0,108190.0,0.5349161]
[1751716976199,0.07948851,108200.0,108190.0,0.5441585]
[1751716976406,0.2775681,108200.0,108190.0,0.5441585]
[1751716976605,0.24063351,108200.0,108190.0,0.5441585]
[1751716977009,0.05191351,108200.0,108190.0,0.26419167]
[1751716977214,0.11701419,108200.0,108190.0,0.5441585]
[1751716977423,0.30601419,108200.0,108190.0,0.5441585]
[1751716977625,0.31525556,108200.0,108190.0,0.5441585]
[1751716977845,0.30601419,108200.0,108190.0,0.5441585]
[1751716978460,0.24091351,108200.0,108190.0,0.5441585]
[1751716980714,0.25015497,108200.0,108190.0,0.5441585]
[1751716981579,0.25015488,108200.0,108190.0,0.5441585]
[1751716982933,0.25939634,108200.0,108190.0,0.5441585]
[1751716986276,0.2316943,108200.0,108190.0,0.5441585]
[1751716987300,0.24093584,108200.0,108190.0,0.5441585]
[1751716987851,0.26863788,108200.0,108190.0,0.5441585]
[1751716992229,0.27787951,108200.0,108190.0,0.26419167]
[1751716992603,0.27787951,108200.0,108190.0,0.5441585]
[1751716993169,0.37855824,108200.0,108190.0,0.5441585]
[1751716993573,0.36931644,108200.0,108190.0,0.5441585]
[1751716994560,0.27787951,108200.0,108190.0,0.5441585]
[1751716994769,0.28712131,108200.0,108190.0,0.5441585]
[1751716995212,0.28712131,108200.0,108190.0,0.5127585]
[1751716995483,0.27787951,108200.0,108190.0,0.5127585]
[1751716995686,0.28712131,108200.0,108190.0,0.5127585]
[1751716995910,0.37837339,108200.0,108190.0,0.5127585]
[1751716996118,0.28693646,108200.0,108190.0,0.5127585]
[1751716996736,0.28693646,108200.0,108190.0,0.23279167]
[1751716996945,0.27769466,108200.0,108190.0,0.5127585]
[1751716999517,0.28693646,108200.0,108190.0,0.5127585]
[1751716999919,0.27769466,108200.0,108190.0,0.5127585]
[1751717000945,0.28693646,108200.0,108190.0,0.23279167]
[1751717001096,0.28693646,108200.0,108190.0,0.5127585]
[1751717002063,0.28693646,108200.0,108190.0,0.5438585]
[1751717002064,0.26845303,108200.0,108190.0,0.5438585]
[1751717002210,0.27769474,108200.0,108190.0,0.5438585]
[1751717002409,0.27769474,108200.0,108190.0,0.5127585]
[1751717003336,0.26845303,108200.0,108190.0,0.5127585]
[1751717003507,0.27769474,108200.0,108190.0,0.5127585]
[1751717004550,0.26845303,108200.0,108190.0,0.5127585]
[1751717004901,0.27769474,108200.0,108190.0,0.5127585]
[1751717005102,0.26845303,108200.0,108190.0,0.5127585]
[1751717005350,0.31462925,108200.0,108190.0,0.5127585]
[1751717007023,0.32387096,108200.0,108190.0,0.5127585]
[1751717011370,0.31462925,108200.0,108190.0,0.5127585]
[1751717011717,0.32387096,108200.0,108190.0,0.5127585]
[1751717012627,0.31462925,108200.0,108190.0,0.5127585]
[1751717013679,0.30538762,108200.0,108190.0,0.5127585]
[1751717014494,0.31462925,108200.0,108190.0,0.5127585]
[1751717016274,0.30538762,108200.0,108190.0,0.5127585]
[1751717016877,0.39682455,108200.0,108190.0,0.5127585]
[1751717018126,0.30538762,108200.0,108190.0,0.5127585]
[1751717019312,0.31462933,108200.0,108190.0,0.5127585]
[1751717019883,0.35627113,108200.0,108190.0,0.23279167]
[1751717020203,0.82108084,108200.0,108190.0,0.19582131]
[1751717020423,1.53233557,108200.0,108190.0,0.00171836]
[1751717020639,1.58683791,108200.0,108190.0,0.00171836]
[1751717021274,1.58693386,108200.0,108190.0,0.0103943]
[1751717021947,1.53156087,108200.0,108190.0,0.0103943]
[1751717022361,1.58691378,108200.0,108190.0,0.0103943]
[1751717023466,1.58691378,108200.0,108190.0,0.00171836]
[1751717023677,1.02698012,108200.0,108190.0,0.00171836]
[1751717023882,1.58691378,108200.0,108190.0,0.00171836]
[1751717024096,1.49547685,108200.0,108190.0,0.01038312]
[1751717024301,1.49547685,108200.0,108190.0,0.00171836]
[1751717025124,0.93554319,108200.0,108190.0,0.00171836]
[1751717025339,1.49547685,108200.0,108190.0,0.00171836]
[1751717025809,1.58691378,108200.0,108190.0,0.00171836]
[1751717026421,1.49547685,108200.0,108190.0,0.00171836]
[1751717028779,1.49491685,108200.0,108190.0,0.00171836]
[1751717031134,1.52270685,108200.0,108190.0,0.00171836]
[1751717036301,1.52265658,108200.0,108190.0,0.00171836]
[1751717043140,1.60265658,108200.0,108190.0,0.00171836]
[1751717043336,1.6387406,108200.0,108190.0,0.00171836]
[1751717045523,1.71264215,108200.0,108190.0,0.00171836]
[1751717048357,1.727183,108200.0,108190.0,0.00171836]
[1751717048568,0.78563644,108190.0,108180.0,0.002]
[1751717048768,0.95465394,108190.0,108180.0,0.002]
[1751717049194,0.98244494,108190.0,108180.0,0.002]
[1751717049399,0.92712567,108190.0,108180.0,0.002]
[1751717050019,0.92712567,108190.0,108180.0,0.003]
[1751717050759,0.64715884,108190.0,108180.0,0.002]
[1751717050970,0.92712567,108190.0,108180.0,0.002]
[1751717051178,1.41552567,108190.0,108180.0,0.002]
[1751717051593,1.49042722,108190.0,108180.0,0.002]
[1751717051989,1.77039405,108190.0,108180.0,0.002]
[1751717052260,1.49042722,108190.0,108180.0,0.002]
[1751717052470,2.11039405,108190.0,108180.0,0.002]
[1751717052674,1.83042722,108190.0,108180.0,0.002]
[1751717053085,1.83042722,108190.0,108180.0,0.003]
[1751717053312,2.11039405,108190.0,108180.0,0.003]
[1751717053646,2.11039405,108190.0,108180.0,0.002]
[1751717056941,1.55046039,108190.0,108180.0,0.002]
[1751717057168,2.11039405,108190.0,108180.0,0.002]
[1751717060239,1.55046039,108190.0,108180.0,0.002]
[1751717060463,2.11039405,108190.0,108180.0,0.002]
[1751717060679,2.1249349,108190.0,108180.0,0.002]
[1751717062183,1.6365349,108190.0,108180.0,0.002]
[1751717062804,1.15334722,108190.0,108180.0,0.002]
[1751717063015,1.35126996,108190.0,108180.0,0.002]
[1751717063443,1.31970996,108190.0,108180.0,0.002]
[1751717063658,1.35000996,108190.0,108180.0,0.002]
[1751717064116,1.16128996,108190.0,108180.0,0.002]
[1751717064330,1.35000996,108190.0,108180.0,0.002]
[1751717064761,1.07004313,108190.0,108180.0,0.002]
[1751717064944,1.35000996,108190.0,108180.0,0.002]
[1751717065381,1.34996996,108190.0,108180.0,0.002]
[1751717067081,1.33476996,108190.0,108180.0,0.002]
[1751717068172,1.34996996,108190.0,108180.0,0.002]
[1751717068377,1.07000313,108190.0,108180.0,0.002]
[1751717068598,1.33476996,108190.0,108180.0,0.002]
[1751717068799,1.31962996,108190.0,108180.0,0.18687705]
[1751717069245,1.03042039,108190.0,108180.0,0.002]
[1751717069461,1.23648567,108190.0,108180.0,0.002]
[1751717069667,1.23648567,108190.0,108180.0,0.0021]
[1751717070081,1.23653567,108190.0,108180.0,0.0021]
[1751717070650,1.22952447,108190.0,108180.0,0.0021]
[1751717072541,1.24452447,108190.0,108180.0,0.0021]
[1751717072990,1.15308754,108190.0,108180.0,0.0021]
[1751717073710,1.15308754,108190.0,108180.0,0.01134385]
[1751717073918,0.85812071,108190.0,108180.0,0.20546449]
[1751717074121,1.13808754,108190.0,108180.0,0.0021]
[1751717074397,1.14456865,108190.0,108180.0,0.0021]
[1751717074599,1.23600558,108190.0,108180.0,0.0021]
[1751717075514,1.12946865,108190.0,108180.0,0.20546449]
[1751717075726,1.12946865,108190.0,108180.0,0.0021]
[1751717076363,1.22535974,108190.0,108180.0,0.0021]
[1751717077204,1.22535974,108190.0,108180.0,0.01134385]
[1751717077413,1.22535974,108190.0,108180.0,0.0021]
[1751717077616,1.31679667,108190.0,108180.0,0.0021]
[1751717078242,1.31679667,108190.0,108180.0,0.01134385]
[1751717078467,1.22535974,108190.0,108180.0,0.0021]
[1751717078716,1.22535974,108190.0,108180.0,0.1962209]
[1751717078961,1.22535974,108190.0,108180.0,0.01134385]
[1751717079175,1.21611692,108190.0,108180.0,0.01134385]
[1751717079393,1.21611692,108190.0,108180.0,0.0021]
[1751717079835,1.26235548,108190.0,108180.0,0.0021]
[1751717080088,1.27855548,108190.0,108180.0,0.0021]
[1751717082831,1.27855548,108190.0,108180.0,0.18697705]
[1751717083037,1.26235548,108190.0,108180.0,0.1962209]
[1751717083214,1.26235548,108190.0,108180.0,0.20546466]
[1751717083852,1.26235548,108190.0,108180.0,0.0021]
[1751717084588,1.27815548,108190.0,108180.0,0.0021]
[1751717085275,1.29385548,108190.0,108180.0,0.0021]
[1751717085413,1.29386082,108190.0,108180.0,0.0021]
[1751717087792,1.01389399,108190.0,108180.0,0.0021]
[1751717088029,1.29386082,108190.0,108180.0,0.0021]
[1751717088459,1.29386095,108190.0,108180.0,0.0021]
[1751717089432,1.24762239,108190.0,108180.0,0.0021]
[1751717091248,0.0184871,108180.0,108170.0,0.26477513]
[1751717091499,0.66214422,108180.0,108170.0,0.26477513]
[1751717091739,1.15978861,108180.0,108170.0,0.25553111]
[1751717091880,1.15978912,108180.0,108170.0,0.25553111]
[1751717092725,1.15978912,108180.0,108170.0,0.25653111]
[1751717093134,1.16903263,108180.0,108170.0,0.25853111]
[1751717093338,1.17827605,108180.0,108170.0,0.24928701]
[1751717093479,1.35390968,108180.0,108170.0,0.24928701]
[1751717095081,1.07394285,108180.0,108170.0,0.24928701]
[1751717095260,1.35390968,108180.0,108170.0,0.24928701]
[1751717095495,1.35390968,108180.0,108170.0,0.21888701]
[1751717096257,1.35390968,108180.0,108170.0,0.26003111]
[1751717096258,1.15978878,108180.0,108170.0,0.26003111]
[1751717096673,1.10053416,108180.0,108170.0,0.53999794]
[1751717096889,1.10053416,108180.0,108170.0,0.61730396]
[1751717096890,0.60929093,108180.0,108170.0,0.61730396]
[1751717097092,0.04981819,108180.0,108170.0,0.81996477]
[1751717097318,0.02212871,108180.0,108170.0,0.53999794]
[1751717097503,0.21032871,108180.0,108170.0,0.53999794]
[1751717098179,0.02212871,108180.0,108170.0,0.53999794]
[1751717098391,0.21032871,108180.0,108170.0,0.53999794]
[1751717099181,0.1882,108180.0,108170.0,0.53999794]
[1751717100548,0.38986819,108190.0,108180.0,0.24450757]
[1751717100755,0.04986819,108190.0,108180.0,0.5244744]
[1751717100971,0.23810819,108190.0,108180.0,0.5244744]
[1751717101402,0.21041871,108190.0,108180.0,0.5244744]
[1751717103220,0.18829,108190.0,108180.0,0.5244744]
[1751717103444,0.18821,108190.0,108180.0,0.5244744]
[1751717103863,5e-05,108190.0,108180.0,0.80444123]
[1751717104081,0.18817,108190.0,108180.0,0.80444123]
[1751717104290,0.18817,108190.0,108180.0,0.83152842]
[1751717104949,5e-05,108190.0,108180.0,0.83152842]
[1751717105170,0.18817,108190.0,108180.0,0.83252842]
[1751717105919,0.18817,108190.0,108180.0,0.83452842]
[1751717106347,0.18817,108190.0,108180.0,0.92596535]
[1751717106556,5e-05,108190.0,108180.0,0.92596535]
[1751717106776,5e-05,108190.0,108180.0,1.22047303]
[1751717106992,0.00052008,108200.0,108190.0,0.80392158]
[1751717107215,0.00052008,108200.0,108190.0,0.89535851]
[1751717108489,0.00052008,108200.0,108190.0,0.33542485]
[1751717108697,0.00052008,108200.0,108190.0,0.89535851]
[1751717109349,0.00052008,108200.0,108190.0,0.89835851]
[1751717110273,0.00052008,108200.0,108190.0,0.90035851]
[1751717110494,0.00052008,108200.0,108190.0,0.91489936]
[1751717110939,0.00052008,108200.0,108190.0,1.10305936]
[1751717111157,0.00052008,108200.0,108190.0,1.13083536]
[1751717111810,0.00052008,108200.0,108190.0,0.96878262]
[1751717118504,0.00052008,108200.0,108190.0,1.01458262]
[1751717120260,0.00052008,108200.0,108190.0,0.6167017]
[1751717120471,0.00052008,108200.0,108190.0,1.01458262]
[1751717124907,0.00052008,108200.0,108190.0,0.98680662]
[1751717128959,0.00052008,108200.0,108190.0,1.09520938]
[1751717133991,0.00052008,108200.0,108190.0,1.25688224]
[1751717135614,0.00052008,108200.0,108190.0,1.25698224]
[1751717146212,0.00052008,108200.0,108190.0,0.69742846]
[1751717146419,0.00052008,108200.0,108190.0,0.99162224]
[1751717146623,0.00052008,108200.0,108190.0,1.22506224]
[1751717147447,0.00052008,108200.0,108190.0,0.94528535]
[1751717147604,0.03112008,108200.0,108190.0,0.9307445]
[1751717147794,0.03112008,108200.0,108190.0,0.7431045]
[1751717149583,0.03112008,108200.0,108190.0,0.6973045]
[1751717149827,0.03112008,108200.0,108190.0,0.7431045]
[1751717155108,0.03112008,108200.0,108190.0,0.46332761]
[1751717155292,0.03112008,108200.0,108190.0,0.7431045]
[1751717158349,0.03112008,108200.0,108190.0,0.41752761]
[1751717158557,0.06518201,108200.0,108190.0,0.32609068]
[1751717159051,0.07442338,108200.0,108190.0,0.32609068]
[1751717159925,0.07442338,108200.0,108190.0,0.32109068]
[1751717160446,0.07442338,108200.0,108190.0,0.32309068]
[1751717160662,0.25278201,108200.0,108190.0,0.32309068]
[1751717161638,0.21872008,108200.0,108190.0,0.60286757]
[1751717163732,0.00052008,108200.0,108190.0,0.6943045]
[1751717171834,0.00052008,108200.0,108190.0,0.7401045]
[1751717172419,0.00052008,108200.0,108190.0,0.7705045]
[1751717174231,0.00052008,108200.0,108190.0,0.9581445]
[1751717175750,0.00052008,108200.0,108190.0,0.9277445]
[1751717197583,0.00052008,108200.0,108190.0,0.9277445]
[1751717207989,1e-08,108200.0,108190.0,0.94228535]
[1751717208342,1e-08,108200.0,108190.0,1.25456224]
[1751717209088,1e-08,108200.0,108190.0,1.25356224]
[1751717209302,1e-08,108200.0,108190.0,0.97678535]
[1751717209527,1e-08,108200.0,108190.0,1.25656224]
[1751717210088,1e-08,108200.0,108190.0,1.25556224]
[1751717210508,1e-08,108200.0,108190.0,1.25756224]
[1751717213159,1e-08,108200.0,108190.0,0.69800846]
[1751717213375,1e-08,108200.0,108190.0,1.25756224]
[1751717213805,1e-08,108200.0,108190.0,0.69800846]
[1751717214037,1e-08,108200.0,108190.0,1.25756224]
[1751717217467,1e-08,108200.0,108190.0,1.59756224]
[1751717217824,0.03105,108220.0,108210.0,0.21254863]
[1751717218043,0.03109698,108220.0,108210.0,0.58376245]
[1751717218291,0.03109698,108220.0,108210.0,0.77104245]
[1751717219635,0.00209698,108220.0,108210.0,0.77104245]
[1751717219833,0.00109698,108220.0,108210.0,0.77104245]
[1751717220049,0.00109698,108220.0,108210.0,0.77304245]
[1751717220275,0.01669698,108220.0,108210.0,0.77304245]
[1751717220476,0.01669698,108220.0,108210.0,0.7875833]
[1751717220725,0.01669698,108220.0,108210.0,0.7885833]
[1751717220940,0.03355,108230.0,108220.0,0.21252899]
[1751717221143,0.03355,108230.0,108220.0,1.11094055]
[1751717221144,0.00205,108230.0,108220.0,1.11094055]
[1751717222596,0.31302689,108230.0,108220.0,0.30396592]
[1751717222806,0.03325,108230.0,108220.0,0.34960592]
[1751717223026,0.31302689,108230.0,108220.0,0.30496592]
[1751717223593,0.31302689,108230.0,108220.0,0.30396592]
[1751717224226,0.31502689,108230.0,108220.0,0.30396592]
[1751717225601,0.03525,108230.0,108220.0,0.30396592]
[1751717226233,0.03525,108230.0,108220.0,0.58374281]
[1751717227986,0.03525,108230.0,108220.0,0.30396592]
[1751717232402,0.44229472,108230.0,108220.0,0.19404907]
[1751717232681,0.67690983,108230.0,108220.0,0.21252908]
[1751717232943,0.71866863,108230.0,108210.0,0.20330726]
[1751717233153,0.32086289,108230.0,108220.0,0.19404915]
[1751717233368,0.48599747,108230.0,108220.0,0.19404915]
[1751717233609,0.53920289,108230.0,108220.0,0.21252941]
[1751717234306,0.92776922,108230.0,108220.0,0.2032895]
[1751717234538,1.26776922,108230.0,108220.0,0.2032895]
[1751717234770,1.25652973,108230.0,108220.0,0.2032895]
[1751717235283,1.25852973,108230.0,108220.0,0.21252967]
[1751717236752,1.25852973,108230.0,108220.0,0.22176967]
[1751717236974,1.1670928,108230.0,108220.0,0.21252967]
[1751717237977,1.1650928,108230.0,108220.0,0.21252967]
[1751717239928,1.19275538,108230.0,108220.0,0.21252967]
[1751717241417,1.1650928,108230.0,108220.0,0.21252967]
[1751717242173,1.1670928,108230.0,108220.0,0.21252967]
[1751717242655,0.76928706,108230.0,108220.0,0.22176976]